bitfinex-derivatives/quotes_SOLF0:USTF0_20220109
["timestamp","ask_amount","ask_price","bid_price","bid_amount"]
[1641723192734,7.24008109,138.2,138.13,0.56]
[1641723193135,3.44,138.19,138.14,0.56]
[1641723193337,7.24008109,138.2,138.14,4.11204112]
[1641723193537,5.72,138.19,138.14,4.11204112]
[1641723193737,3.44,138.16,138.13,27.66479]
[1641723193937,3.44,138.15,138.1,65.5687]
[1641723194137,10.327,138.16,138.08,70.0222]
[1641723194336,3.44,138.15,138.11,4.11296814]
[1641723194539,6.887,138.16,138.11,4.11296814]
[1641723195040,6.887,138.16,138.11,5.92196814]
[1641723195340,3.44,138.19,138.12,31.77678861]
[1641723195541,3.44,138.18,138.12,4.11199861]
[1641723195742,5.876,138.18,138.12,4.11199861]
[1641723196344,5.876,138.18,138.12,4.67199861]
[1641723196545,5.876,138.18,138.13,4.11216229]
[1641723197144,3.44,138.2,138.13,4.11216229]
[1641723197444,27.66479,138.21,138.13,0.56]
[1641723197645,27.66479,138.23,138.14,5.9210869]
[1641723197845,3.44,138.21,138.14,5.9210869]
[1641723198046,3.44,138.21,138.14,4.1120869]
[1641723198449,3.44,138.21,138.15,4.67198054]
[1641723198649,3.44,138.21,138.15,4.11198054]
[1641723198847,34.9030369,138.23,138.15,4.11198054]
[1641723199047,3.44,138.22,138.15,4.67198054]
[1641723199248,27.66479,138.23,138.16,0.56]
[1641723199647,2.46523457,138.2,138.16,4.1112126]
[1641723200250,2.46523457,138.2,138.17,0.56]
[1641723200450,2.46523457,138.2,138.17,8.583]
[1641723201050,2.46523457,138.2,138.18,0.56]
[1641723201450,3.457e-05,138.2,138.18,0.56]
[1641723201851,3.43e-05,138.22,138.18,0.56]
[1641723202062,27.66479,138.23,138.18,0.56]
[1641723202453,27.66479,138.23,138.17,0.56]
[1641723202753,27.66479,138.23,138.16,0.56]
[1641723202953,31.10479,138.23,138.15,27.66479]
[1641723203154,27.66479,138.23,138.15,27.66479]
[1641723203356,3.44,138.21,138.15,27.66479]
[1641723203654,3.44,138.18,138.16,4.11158441]
[1641723203855,9.262,138.18,138.16,4.11158441]
[1641723204258,5.822,138.18,138.12,4.11217487]
[1641723204456,5.822,138.18,138.11,0.56]
[1641723204956,5.822,138.18,138.12,4.11233109]
[1641723205358,33.48679,138.18,138.12,4.11233109]
[1641723205555,9.262,138.18,138.12,4.11233109]
[1641723205755,9.262,138.18,138.12,4.67233109]
[1641723206157,9.262,138.18,138.13,4.11220356]
[1641723206558,9.262,138.18,138.14,0.56]
[1641723206760,5.822,138.18,138.13,4.11220356]
[1641723207460,5.822,138.18,138.13,31.77699356]
[1641723207660,5.822,138.18,138.13,32.33699356]
[1641723207959,5.822,138.18,138.14,4.67206692]
[1641723208161,5.822,138.18,138.14,4.11206692]
[1641723208360,5.822,138.18,138.14,0.56]
[1641723208560,3.44,138.2,138.14,0.56]
[1641723208765,16.10755694,138.21,138.13,27.66479]
[1641723209063,3.44,138.17,138.1,82.33988978]
[1641723209361,46.2331818,138.17,138.1,82.33988978]
[1641723209763,38.99179,138.17,138.11,4.11294141]
[1641723210762,3.44,138.14,138.11,4.11294141]
[1641723210963,5.841,138.14,138.11,4.11294141]
[1641723211266,3.44,138.12,138.1,15.30108978]
[1641723211663,5.841,138.14,138.1,15.30108978]
[1641723211664,3.44,138.13,138.1,15.30108978]
[1641723211862,5.841,138.14,138.1,15.30108978]
[1641723212264,5.841,138.14,138.11,4.11305564]
[1641723213064,5.841,138.14,138.11,4.67305564]
[1641723213264,5.841,138.14,138.11,4.11305564]
[1641723213464,3.44,138.16,138.12,4.11280965]
[1641723214368,55.32958,138.17,138.12,4.11280965]
[1641723214565,3.44,138.16,138.11,4.67281489]
[1641723214767,3.44,138.16,138.1,15.30108978]
[1641723214966,3.44,138.16,138.1,15.86108978]
[1641723215167,3.44,138.16,138.11,4.11280768]
[1641723215467,3.44,138.16,138.11,4.67280768]
[1641723215968,55.32958,138.17,138.11,4.67280768]
[1641723216167,58.76958,138.17,138.12,4.11280518]
[1641723216369,3.44,138.18,138.12,4.11280518]
[1641723216568,3.44,138.18,138.12,4.67280518]
[1641723216767,3.44,138.18,138.12,4.11280518]
[1641723216969,3.44,138.15,138.13,4.11225742]
[1641723217170,6.511,138.15,138.13,4.11225742]
[1641723217369,9.951,138.15,138.13,4.11225742]
[1641723218070,3.44,138.14,138.11,4.11261063]
[1641723218270,3.44,138.14,138.1,15.30108978]
[1641723218670,3.44,138.14,138.11,4.11302234]
[1641723219473,6.511,138.15,138.11,4.11302234]
[1641723219672,15.36955923,138.16,138.11,4.11302234]
[1641723220073,15.36955923,138.16,138.11,4.67302234]
[1641723220275,15.36955923,138.16,138.13,0.56]
[1641723220474,15.36675682,138.19,138.14,0.56]
[1641723220674,15.36675682,138.19,138.14,4.67175732]
[1641723221074,15.36675682,138.19,138.15,4.11185418]
[1641723221479,15.36675682,138.19,138.12,27.66479]
[1641723222077,15.36675682,138.19,138.13,4.11201676]
[1641723222276,30.7336722,138.19,138.13,4.11201676]
[1641723222476,34.1736722,138.19,138.13,4.11201676]
[1641723222875,30.7336722,138.19,138.13,4.11201676]
[1641723223277,30.7336722,138.19,138.16,0.56]
[1641723223479,30.7336722,138.19,138.17,28.22479]
[1641723223676,15.11076057,138.23,138.17,28.22479]
[1641723223877,15.11076057,138.23,138.2,0.56]
[1641723224077,40.80702274,138.24,138.2,9.653]
[1641723224278,21.55536647,138.29,138.22,0.56]
[1641723224779,10.67536647,138.29,138.22,0.56]
[1641723224978,3.44,138.28,138.18,1.808]
[1641723225178,7.23536647,138.29,138.21,0.56]
[1641723225378,3.44,138.29,138.22,0.56]
[1641723225578,98.82281989,138.3,138.22,27.66479]
[1641723225780,106.05740119,138.3,138.22,27.66479]
[1641723225982,3.44,138.25,138.19,1.808]
[1641723226179,7.109,138.25,138.19,1.808]
[1641723226380,7.109,138.25,138.15,0.56]
[1641723226582,10.549,138.25,138.16,0.56]
[1641723226780,10.549,138.25,138.16,4.67082689]
[1641723227182,3.44,138.24,138.17,4.1107324]
[1641723227386,3.44,138.22,138.17,4.1107324]
[1641723227584,12.252,138.22,138.17,4.1107324]
[1641723228289,12.252,138.22,138.16,4.11121941]
[1641723228489,12.252,138.22,138.15,0.56]
[1641723228887,8.812,138.22,138.16,0.56]
[1641723229087,31.10479,138.24,138.16,4.67115812]
[1641723229586,34.90251301,138.24,138.17,4.11100671]
[1641723229988,34.90251301,138.24,138.14,27.66479]
[1641723230188,3.44,138.22,138.14,28.22479]
[1641723230389,3.44,138.22,138.15,4.11140839]
[1641723230587,3.44,138.22,138.15,4.67140839]
[1641723231189,36.82279,138.24,138.16,4.11134362]
[1641723231389,3.44,138.22,138.16,4.11134362]
[1641723231588,36.82279,138.24,138.16,4.11134362]
[1641723231788,3.44,138.22,138.16,4.11134362]
[1641723232088,36.82279,138.24,138.16,4.11134362]
[1641723232291,3.44,138.23,138.15,4.67142866]
[1641723232491,3.44,138.23,138.17,4.11098096]
[1641723232889,7.23693733,138.26,138.17,4.11098096]
[1641723233589,7.23693733,138.26,138.15,0.56]
[1641723233790,27.66479,138.24,138.14,29.47279]
[1641723233991,3.44,138.21,138.14,27.66479]
[1641723234191,7.24034319,138.19,138.16,4.11165229]
[1641723234391,3.44,138.17,138.16,4.11165229]
[1641723234590,9.811,138.17,138.11,27.66479]
[1641723234790,3.44,138.15,138.1,15.30108978]
[1641723235290,3.44,138.15,138.11,4.11313541]
[1641723236892,41.27744399,138.17,138.11,4.11313541]
[1641723237093,3.44,138.12,138.1,15.30108978]
[1641723237295,3.44,138.11,138.1,15.30108978]
[1641723237895,3.44,138.11,138.07,40.88705961]
[1641723238095,3.44,138.08,138.07,40.88705961]
[1641723238296,11.532,138.08,138.07,40.88705961]
[1641723238595,11.532,138.08,138.06,40.89127172]
[1641723238795,3.44,138.07,138.06,40.89127172]
[1641723238996,8.092,138.08,138.06,40.89127172]
[1641723239395,3.44,138.08,138.06,40.89127172]
[1641723239998,3.44,138.07,138.06,40.89127172]
[1641723240295,31.10479,138.1,138.06,40.89127172]
[1641723240698,3.44,138.08,138.06,40.89127172]
[1641723241097,3.44,138.1,138.06,40.89127172]
[1641723241299,34.90854226,138.13,138.06,40.89127172]
[1641723241501,3.44,138.1,138.06,40.89127172]
[1641723241705,3.44,138.1,138.08,27.66479]
[1641723242403,3.44,138.1,138.06,69.11606172]
[1641723242606,3.44,138.1,138.06,68.55606172]
[1641723243004,6.464,138.13,138.06,68.55606172]
[1641723243205,6.464,138.13,138.06,40.89127172]
[1641723243404,3.44,138.1,138.06,40.89127172]
[1641723244104,10.132,138.1,138.06,40.89127172]
[1641723244405,3.44,138.09,138.06,40.89127172]
[1641723244706,6.692,138.1,138.06,40.89127172]
[1641723244906,10.132,138.1,138.06,40.89127172]
[1641723245207,6.692,138.1,138.06,40.89127172]
[1641723245406,3.44,138.12,138.06,40.89127172]
[1641723245607,3.44,138.11,138.06,40.89127172]
[1641723245806,3.44,138.1,138.06,40.89127172]
[1641723246007,6.757,138.11,138.06,40.89127172]
[1641723246306,10.197,138.11,138.06,40.89127172]
[1641723246507,6.757,138.11,138.06,40.89127172]
[1641723247206,3.44,138.13,138.06,40.89127172]
[1641723247608,66.5709718,138.17,138.06,40.89127172]
[1641723248008,3.44,138.11,138.06,40.89127172]
[1641723249109,68.6649718,138.17,138.06,40.89127172]
[1641723249311,7.2413918,138.17,138.09,0.56]
[1641723249511,273.6843868,138.2,138.11,0.56]
[1641723249512,237.29890071,138.2,138.11,0.56]
[1641723249711,61.33304315,138.2,138.16,27.66479]
[1641723250515,61.33304315,138.2,138.16,28.22479]
[1641723250715,61.33304315,138.2,138.16,27.66479]
[1641723251215,64.77304315,138.2,138.16,27.66479]
[1641723251428,64.77304315,138.2,138.14,27.66479]
[1641723251715,3.44,138.19,138.14,27.66479]
[1641723252214,69.35904315,138.2,138.14,27.66479]
[1641723252616,3.44,138.16,138.14,27.66479]
[1641723252817,61.33304315,138.2,138.14,28.22479]
[1641723253015,64.77304315,138.2,138.14,27.66479]
[1641723253214,61.33304315,138.2,138.14,27.66479]
[1641723253616,61.33304315,138.2,138.15,4.11168659]
[1641723254016,64.77304315,138.2,138.15,4.11168659]
[1641723254616,3.44,138.19,138.15,4.11168659]
[1641723254817,7.761,138.19,138.14,27.66479]
[1641723255017,3.44,138.18,138.14,27.66479]
[1641723255217,7.761,138.19,138.15,4.1119109]
[1641723255420,61.33304315,138.2,138.15,4.1119109]
[1641723255817,61.33304315,138.2,138.17,27.66479]
[1641723256218,3.44,138.19,138.17,27.66479]
[1641723256419,12.351,138.19,138.17,27.66479]
[1641723256618,3.44,138.18,138.14,27.66479]
[1641723256819,3.44,138.15,138.11,1.809]
[1641723257118,3.44,138.15,138.1,86.60860583]
[1641723257119,11.704,138.15,138.1,86.60860583]
[1641723257318,8.264,138.15,138.12,4.11247458]
[1641723257518,3.44,138.13,138.12,4.11247458]
[1641723258019,3.44,138.13,138.11,4.1127785]
[1641723258218,3.44,138.12,138.1,15.31040583]
[1641723258418,9.285,138.12,138.1,15.31040583]
[1641723258718,5.845,138.12,138.1,15.31040583]
[1641723258919,9.285,138.12,138.1,15.31040583]
[1641723259921,5.845,138.12,138.1,15.31040583]
[1641723260123,3.44,138.11,138.1,15.31040583]
[1641723260823,3.44,138.11,138.1,19.42372157]
[1641723262523,5.845,138.12,138.1,19.42372157]
[1641723262722,3.44,138.15,138.1,19.42372157]
[1641723262921,3.44,138.15,138.11,4.11280814]
[1641723263621,27.66479,138.19,138.11,4.11280814]
[1641723264022,68.57312424,138.2,138.11,4.11280814]
[1641723264222,2.46876657,138.18,138.11,4.11280814]
[1641723264421,3.44,138.17,138.11,4.11280814]
[1641723265022,61.33304315,138.2,138.11,4.11280814]
[1641723265223,3.44,138.17,138.11,4.11280814]
[1641723266023,3.44,138.17,138.13,27.66479]
[1641723266422,61.33304315,138.2,138.13,27.66479]
[1641723266622,61.33304315,138.2,138.14,4.11210173]
[1641723267023,61.33304315,138.2,138.14,4.67210173]
[1641723267322,61.33304315,138.2,138.16,0.56]
[1641723267523,61.33304315,138.2,138.17,0.56]
[1641723267923,61.33304315,138.2,138.18,4.11097688]
[1641723268124,61.33304315,138.2,138.19,27.66479]
[1641723269725,61.33304315,138.2,138.18,27.66479]
[1641723269925,70.86704315,138.2,138.13,1.809]
[1641723270126,67.42704315,138.2,138.15,27.66479]
[1641723270326,3.44,138.18,138.15,27.66479]
[1641723270927,3.44,138.18,138.16,4.11171496]
[1641723271329,3.44,138.18,138.15,27.66479]
[1641723271529,61.33304315,138.2,138.15,27.66479]
[1641723271727,61.33304315,138.2,138.16,4.11123471]
[1641723272227,61.33304315,138.2,138.19,27.66479]
[1641723272627,61.33304315,138.2,138.16,4.11123471]
[1641723272827,69.53804315,138.2,138.15,27.66479]
[1641723273027,72.97804315,138.2,138.15,27.66479]
[1641723273227,69.53804315,138.2,138.15,27.66479]
[1641723273427,69.53804315,138.2,138.16,4.11128022]
[1641723273627,72.97804315,138.2,138.16,4.11128022]
[1641723273828,69.53804315,138.2,138.16,4.11128022]
[1641723274228,69.53804315,138.2,138.18,27.66479]
[1641723275629,8.205,138.2,138.18,28.22479]
[1641723275835,15.32424886,138.22,138.18,28.22479]
[1641723276030,15.32424886,138.22,138.18,36.28479]
[1641723276230,15.32424886,138.22,138.21,27.66479]
[1641723280632,15.32424886,138.22,138.18,27.66479]
[1641723280633,18.76424886,138.22,138.18,27.66479]
[1641723280834,3.44,138.19,138.18,27.66479]
[1641723281134,12.129,138.19,138.18,27.66479]
[1641723281636,8.689,138.19,138.18,27.66479]
[1641723281834,12.129,138.19,138.18,27.66479]
[1641723282234,8.689,138.19,138.18,27.66479]
[1641723282434,15.32424886,138.22,138.18,27.66479]
[1641723282634,15.32424886,138.22,138.19,0.56]
[1641723282834,15.32424886,138.22,138.18,31.77563296]
[1641723283035,15.32424886,138.22,138.18,27.66479]
[1641723283234,20.95462279,138.23,138.18,27.66479]
[1641723283435,17.51462279,138.23,138.2,0.56]
[1641723283635,17.51462279,138.23,138.19,4.67039012]
[1641723283834,7.534,138.23,138.19,0.56]
[1641723284034,34.90041823,138.28,138.19,0.56]
[1641723284236,34.90041823,138.28,138.21,27.66479]
[1641723284434,3.44,138.25,138.21,28.22479]
[1641723286437,3.44,138.25,138.21,55.88958]
[1641723286937,3.44,138.25,138.21,55.32958]
[1641723287137,34.90041823,138.28,138.21,55.32958]
[1641723287335,27.66479,138.28,138.21,55.32958]
[1641723287536,3.44,138.28,138.23,0.56]
[1641723287736,9.96607232,138.3,138.23,0.56]
[1641723287935,13.40607232,138.3,138.23,0.56]
[1641723288339,9.96607232,138.3,138.29,27.66479]
[1641723290643,9.96607232,138.3,138.29,28.22479]
[1641723291043,9.96607232,138.3,138.29,27.66479]
[1641723291645,9.96607232,138.3,138.29,28.22479]
[1641723291844,3.44,138.31,138.29,27.66479]
[1641723292244,61.31071882,138.33,138.29,27.66479]
[1641723292444,61.31071882,138.33,138.32,27.66479]
[1641723292646,61.31071882,138.33,138.32,36.30979]
[1641723294548,64.75071882,138.33,138.32,36.30979]
[1641723294747,64.75071882,138.33,138.32,8.645]
[1641723294946,64.75071882,138.33,138.29,27.66479]
[1641723295146,61.31071882,138.33,138.29,27.66479]
[1641723295347,3.44,138.3,138.26,0.56]
[1641723295548,3.44,138.29,138.26,0.56]
[1641723295747,3.44,138.29,138.25,0.56]
[1641723296747,3.44,138.29,138.24,29.47179]
[1641723297348,3.44,138.29,138.25,4.10901712]
[1641723297748,76.59564069,138.33,138.25,4.10901712]
[1641723298148,2.45511825,138.32,138.25,4.10901712]
[1641723298349,3.44,138.29,138.25,4.10901712]
[1641723298549,3.44,138.3,138.25,4.10901712]
[1641723298748,3.44,138.3,138.24,27.66479]
[1641723299152,3.44,138.31,138.25,4.10905628]
[1641723299349,3.44,138.31,138.25,5.91605628]
[1641723300053,5.89513825,138.32,138.25,2.367]
[1641723300352,2.45513825,138.32,138.28,27.66479]
[1641723300553,2.45611313,138.31,138.28,34.87379]
[1641723300754,2.45611313,138.31,138.29,1.807]
[1641723301156,1e-08,138.31,138.3,0.56]
[1641723301359,30.56324769,138.34,138.3,0.56]
[1641723301557,30.56324769,138.34,138.31,2.367]
[1641723301757,30.56324769,138.34,138.31,11.282]
[1641723301956,30.56324769,138.34,138.32,0.56]
[1641723302157,30.56324769,138.34,138.33,0.56]
[1641723302460,30.56324769,138.34,138.33,55.88958]
[1641723303059,30.56324769,138.34,138.33,55.32958]
[1641723303461,30.56324769,138.34,138.29,67.5756]
[1641723303663,40.45024769,138.34,138.29,67.5756]
[1641723303961,37.01024769,138.34,138.29,67.5756]
[1641723304162,40.45024769,138.34,138.29,67.5756]
[1641723304362,37.01024769,138.34,138.29,67.5756]
[1641723304569,37.01024769,138.34,138.29,95.24039]
[1641723304964,30.56324769,138.34,138.29,95.24039]
[1641723305364,30.56324769,138.34,138.29,97.60739]
[1641723305566,30.56324769,138.34,138.29,95.80039]
[1641723306066,30.56324769,138.34,138.29,95.24039]
[1641723306265,3.44,138.31,138.29,95.24039]
[1641723306468,3.44,138.31,138.29,27.66479]
[1641723306668,3.44,138.33,138.29,27.66479]
[1641723306869,30.56324769,138.34,138.29,27.66479]
[1641723307470,3.44,138.32,138.29,27.66479]
[1641723307669,30.56324769,138.34,138.29,27.66479]
[1641723307870,34.00324769,138.34,138.29,27.66479]
[1641723308071,30.56324769,138.34,138.29,27.66479]
[1641723308471,30.56324769,138.34,138.33,27.66479]
[1641723309070,34.00324769,138.34,138.33,27.66479]
[1641723309271,34.00324769,138.34,138.29,27.66479]
[1641723309473,3.44,138.3,138.27,1.807]
[1641723309671,3.44,138.28,138.21,72.3322]
[1641723309873,6.382,138.3,138.21,1.807]
[1641723310075,3.44,138.24,138.21,1.807]
[1641723310273,10.461,138.24,138.21,1.807]
[1641723310472,10.461,138.24,138.22,4.1097274]
[1641723310673,3.44,138.23,138.22,4.1097274]
[1641723310873,3.44,138.23,138.2,15.29948676]
[1641723311073,3.44,138.21,138.2,15.29948676]
[1641723311273,3.44,138.21,138.19,27.66479]
[1641723311274,10.483,138.21,138.19,27.66479]
[1641723311675,3.44,138.2,138.19,27.66479]
[1641723312074,4.26219998,138.2,138.19,27.66479]
[1641723312274,0.82219998,138.2,138.19,27.66479]
[1641723312475,4.26219998,138.2,138.19,27.66479]
[1641723313075,3.44,138.2,138.16,27.66479]
[1641723313475,3.44,138.2,138.17,4.11091593]
[1641723315180,3.44,138.22,138.17,4.11091593]
[1641723315378,3.44,138.25,138.18,0.56]
[1641723315577,3.44,138.25,138.19,2.368]
[1641723315877,3.44,138.25,138.19,1.808]
[1641723316078,3.44,138.24,138.19,5.91788366]
[1641723316679,3.44,138.24,138.23,27.66479]
[1641723316878,4.0,138.29,138.23,27.66479]
[1641723316879,3.44,138.26,138.23,27.66479]
[1641723317079,15.2987198,138.3,138.23,31.77450395]
[1641723317279,18.7387198,138.3,138.24,0.56]
[1641723317479,15.2987198,138.3,138.25,1.808]
[1641723317682,15.29693719,138.31,138.25,1.808]
[1641723317881,15.29693719,138.31,138.25,2.368]
[1641723318178,18.73693719,138.31,138.26,4.10862762]
[1641723318381,18.73693719,138.31,138.26,4.66862762]
[1641723318581,3.44,138.33,138.3,55.32958]
[1641723318982,3.44,138.31,138.3,55.32958]
[1641723319182,10.342,138.31,138.27,5.91531986]
[1641723319384,3.44,138.29,138.23,1.807]
[1641723319582,3.44,138.3,138.23,1.807]
[1641723319783,3.44,138.3,138.24,4.10876994]
[1641723319984,10.342,138.31,138.24,4.10876994]
[1641723320384,10.342,138.31,138.24,4.66876994]
[1641723320583,3.44,138.31,138.3,27.66479]
[1641723321385,45.85683905,138.34,138.3,27.66479]
[1641723321985,3.44,138.32,138.3,27.66479]
[1641723322386,3.44,138.31,138.3,27.66479]
[1641723324085,45.85683905,138.34,138.3,27.66479]
[1641723324687,3.44,138.33,138.3,27.66479]
[1641723324889,49.29683905,138.34,138.3,27.66479]
[1641723325591,45.85683905,138.34,138.3,27.66479]
[1641723325792,49.29683905,138.34,138.3,27.66479]
[1641723325992,45.85683905,138.34,138.31,1.807]
[1641723326594,45.85683905,138.34,138.33,27.66479]
[1641723326994,49.29683905,138.34,138.33,27.66479]
[1641723327194,49.29683905,138.34,138.3,27.66479]
[1641723327396,45.85683905,138.34,138.3,27.66479]
[1641723327595,3.44,138.33,138.3,27.66479]
[1641723328497,45.85683905,138.34,138.3,27.66479]
[1641723328696,45.85683905,138.34,138.31,1.807]
[1641723328898,45.85683905,138.34,138.3,27.66479]
[1641723329097,3.44,138.31,138.28,27.66479]
[1641723329297,3.44,138.29,138.23,1.807]
[1641723329497,7.23353467,138.32,138.21,1.808]
[1641723329697,4.0,138.33,138.21,1.808]
[1641723329897,3.44,138.29,138.21,1.808]
[1641723330097,3.44,138.29,138.23,1.808]
[1641723330496,3.44,138.29,138.24,4.10875686]
[1641723330699,11.23327306,138.33,138.28,55.32958]
[1641723330903,3.44,138.29,138.28,27.66479]
[1641723331498,10.552,138.29,138.28,27.66479]
[1641723331899,11.63211923,138.29,138.28,27.66479]
[1641723332999,11.63211923,138.29,138.24,27.66479]
[1641723333201,3.44,138.25,138.24,27.66479]
[1641723333401,6.51,138.25,138.24,27.66479]
[1641723333599,7.5903323,138.25,138.24,27.66479]
[1641723334701,1.0803323,138.25,138.24,27.66479]
[1641723336302,1.0803323,138.25,138.24,31.77397838]
[1641723336503,5.08005914,138.31,138.24,31.77397838]
[1641723336702,1.0800362,138.25,138.24,31.77397838]
[1641723337305,1.08002856,138.26,138.24,31.77397838]
[1641723337604,1.08002856,138.26,138.24,38.24697838]
[1641723337803,15.28681776,138.32,138.24,38.24697838]
[1641723338004,15.28681776,138.32,138.24,34.13779]
[1641723338904,3.44,138.28,138.25,4.1088426]
[1641723339304,0.97187422,138.27,138.25,4.1088426]
[1641723340605,0.97188411,138.31,138.25,4.1088426]
[1641723340806,3.44,138.28,138.25,4.1088426]
[1641723341005,0.97187062,138.26,138.25,4.1088426]
[1641723341506,0.97185838,138.27,138.25,4.1088426]
[1641723341705,0.97221671,138.26,138.25,4.1088426]
[1641723342806,0.97221022,138.27,138.25,4.1088426]
[1641723343005,0.97221681,138.26,138.25,4.1088426]
[1641723344006,0.82175025,138.28,138.25,4.1088426]
[1641723344207,0.821748,138.26,138.25,4.1088426]
[1641723344806,4.8e-05,138.26,138.25,4.1088426]
[1641723345008,0.82174977,138.27,138.25,4.1088426]
[1641723345209,0.82174977,138.27,138.26,1.808]
[1641723345610,0.82174977,138.27,138.26,5.91640163]
[1641723345809,0.82174977,138.27,138.26,4.10840163]
[1641723346811,0.82174977,138.27,138.26,34.43124322]
[1641723347412,0.82174977,138.27,138.26,31.77319163]
[1641723347610,4.26174977,138.27,138.26,31.77319163]
[1641723347910,4.26174977,138.27,138.26,27.66479]
[1641723350216,8.26174977,138.27,138.26,27.66479]
[1641723350418,8.26174977,138.27,138.25,2.65158682]
[1641723350419,15.71674977,138.27,138.25,2.65158682]
[1641723350617,4.0,138.26,138.23,15.36781768]
[1641723350818,3.44,138.24,138.23,15.36781768]
[1641723351018,12.721,138.24,138.23,15.36781768]
[1641723351218,16.721,138.24,138.23,15.36781768]
[1641723351620,16.721,138.24,138.22,15.37181434]
[1641723351821,7.44,138.23,138.22,15.37181434]
[1641723352019,7.44,138.23,138.2,13.24806301]
[1641723352219,7.44,138.21,138.2,12.62806301]
[1641723352420,13.747,138.21,138.2,11.26806301]
[1641723352618,13.747,138.21,138.2,6.20806301]
[1641723353619,20.98629489,138.21,138.2,6.20806301]
[1641723353819,20.98629489,138.21,138.13,109.17906436]
[1641723354020,4.0,138.17,138.13,109.17906436]
[1641723354220,4.0,138.16,138.14,4.11187639]
[1641723354522,3.44,138.15,138.14,4.11187639]
[1641723355321,6.477,138.17,138.14,4.11187639]
[1641723355522,27.66479,138.19,138.14,4.11187639]
[1641723355523,3.44,138.15,138.14,4.11187639]
[1641723357626,27.66479,138.19,138.14,4.11187639]
[1641723357826,34.90382287,138.22,138.14,4.11187639]
[1641723358026,3.44,138.18,138.14,5.92087639]
[1641723358226,7.23903287,138.22,138.14,5.92087639]
[1641723358426,3.44,138.18,138.15,4.11128602]
[1641723358625,3.44,138.17,138.15,4.11128602]
[1641723359026,3.44,138.19,138.15,4.11128602]
[1641723359326,3.44,138.19,138.15,10.56528602]
[1641723359830,3.44,138.19,138.16,4.11123479]
[1641723360029,3.44,138.21,138.16,5.92023479]
[1641723360231,0.82212953,138.18,138.16,5.92023479]
[1641723360429,3.44,138.17,138.16,5.92023479]
[1641723360832,3.44,138.17,138.16,33.58502479]
[1641723361230,3.44,138.17,138.16,31.77602479]
[1641723361430,4.2623482,138.17,138.16,31.77602479]
[1641723361631,4.2623482,138.17,138.16,4.11123479]
[1641723366337,9.9713482,138.17,138.16,4.11123479]
[1641723367340,4.2623482,138.17,138.16,4.11123479]
[1641723368138,10.1473482,138.17,138.16,4.11123479]
[1641723368540,21.38926441,138.17,138.08,283.5670176]
[1641723368740,3.44,138.09,138.08,298.86605668]
[1641723368941,10.659,138.09,138.08,298.86605668]
[1641723369141,12.40378391,138.09,138.08,298.86605668]
[1641723369342,12.40378391,138.09,138.08,283.5670176]
[1641723369541,12.40378391,138.09,138.08,279.9870176]
[1641723369943,12.40378391,138.09,138.08,34.9890345]
[1641723370141,12.40378391,138.09,138.03,164.56079]
[1641723370445,3.44,138.05,138.03,162.75079]
[1641723370642,12.344,138.05,138.03,27.66479]
[1641723372741,8.904,138.05,138.03,27.66479]
[1641723374543,12.344,138.05,138.03,27.66479]
[1641723374842,8.904,138.05,138.03,27.66479]
[1641723375245,12.344,138.05,138.03,27.66479]
[1641723376046,8.904,138.05,138.04,4.11398858]
[1641723376246,3.44,138.06,138.04,4.11398858]
[1641723376647,7.219,138.09,138.04,4.11398858]
[1641723376847,3.44,138.07,138.04,4.67398858]
[1641723377047,8.628,138.08,138.04,4.67398858]
[1641723377447,1.74480236,138.07,138.05,4.11389299]
[1641723378449,1.74458164,138.08,138.05,4.11389299]
[1641723379050,1.74466269,138.11,138.05,4.11389299]